bitfinex-derivatives/quotes_ETHF0:USTF0_20220103
["timestamp","ask_amount","ask_price","bid_price","bid_amount"]
[1641201617711,47.095487,3791.0,3790.9,11.26]
[1641201617912,4.00958,3792.1,3790.9,11.458965]
[1641201618812,4.00958,3792.1,3790.9,1.51721057]
[1641201619212,5.50958,3792.1,3790.9,0.198965]
[1641201619815,4.00958,3792.1,3790.9,0.198965]
[1641201620015,4.00958,3792.1,3790.9,2.13890188]
[1641201620220,4.00958,3792.1,3790.9,0.820665]
[1641201621016,1.5,3791.5,3790.9,0.820665]
[1641201621318,4.00958,3792.1,3790.9,0.820665]
[1641201621515,2.00479,3791.6,3790.9,0.820665]
[1641201621717,2.00479,3792.1,3790.9,0.820665]
[1641201622317,2.00479,3792.1,3791.0,11.26]
[1641201623219,2.00479,3792.1,3790.9,0.744056]
[1641201623416,2.00479,3792.1,3790.9,12.004056]
[1641201623616,2.00479,3792.1,3790.9,0.744056]
[1641201623816,3.50479,3792.1,3790.9,0.744056]
[1641201624118,1.5,3792.4,3790.9,0.744056]
[1641201624317,2.11248874,3793.0,3791.0,11.26]
[1641201624318,0.4043,3793.0,3791.0,11.26]
[1641201624516,1.5,3792.4,3791.2,1.31815348]
[1641201624718,1.5,3792.4,3791.0,11.26]
[1641201624917,1.5,3792.7,3791.0,11.26]
[1641201625117,0.98333963,3792.9,3791.0,11.81]
[1641201625325,1.5,3792.4,3791.0,11.81]
[1641201625523,2.00479,3792.2,3791.3,2.00479]
[1641201626520,0.128157,3792.1,3791.3,2.00479]
[1641201626720,0.128157,3792.1,3791.3,3.32289309]
[1641201626919,2.00479,3792.2,3791.3,2.00479]
[1641201627919,1.5,3792.1,3791.3,2.00479]
[1641201628121,2.00479,3792.2,3791.3,2.00479]
[1641201628522,0.128157,3792.1,3791.3,2.00479]
[1641201633532,1.5,3791.9,3791.3,2.00479]
[1641201633930,0.7469,3792.0,3791.3,2.00479]
[1641201634431,0.7469,3792.0,3791.3,2.83379]
[1641201634831,2.00479,3792.2,3791.3,2.83379]
[1641201635232,0.128157,3792.1,3791.3,2.83379]
[1641201636933,1.46533699,3791.7,3791.3,2.83379]
[1641201637135,1.15529788,3791.4,3791.3,2.83379]
[1641201637332,1.15529788,3791.4,3791.3,2.910399]
[1641201637533,1.46533699,3791.7,3791.3,2.910399]
[1641201637734,0.56104845,3791.4,3791.3,0.99911803]
[1641201638034,1.46533699,3791.7,3791.3,0.99911803]
[1641201638935,3.699e-05,3791.7,3791.3,0.99911803]
[1641201639135,3.699e-05,3791.7,3791.6,1.3179728]
[1641201639334,1.73267435,3791.9,3791.6,1.3945818]
[1641201639735,1.73267435,3792.1,3791.6,1.3945818]
[1641201640536,1.73267435,3792.1,3791.6,1.5169378]
[1641201640736,1.73267435,3792.1,3791.6,1.3945818]
[1641201641937,1.73267435,3792.1,3791.7,11.26]
[1641201642140,2.00479,3792.6,3791.7,11.26]
[1641201642336,2.00479,3792.6,3792.1,11.26]
[1641201642538,2.88791693,3792.7,3792.5,1.31760118]
[1641201642738,2.88791693,3792.7,3792.6,0.076609]
[1641201642939,1.1523646,3793.0,3792.6,0.076609]
[1641201643541,1.1523646,3793.0,3792.6,2.081399]
[1641201644342,0.4043,3793.0,3792.6,2.081399]
[1641201645345,1.5,3792.9,3792.6,2.081399]
[1641201645541,0.229991,3792.8,3792.6,2.00479]
[1641201645741,1.5,3792.9,3792.6,2.00479]
[1641201645942,1.5,3792.9,3792.2,2.00479]
[1641201647147,2.88791693,3793.0,3792.2,2.00479]
[1641201647345,2.88791693,3793.0,3792.2,2.76249]
[1641201647646,1.5,3792.7,3792.2,2.76249]
[1641201648046,1.5,3792.9,3792.2,2.76249]
[1641201648447,1.5,3793.0,3792.2,2.76249]
[1641201649549,1.4618591,3792.5,3792.2,2.76249]
[1641201649749,1.4618591,3792.5,3792.3,0.076609]
[1641201650351,1.4618591,3792.5,3792.4,1.31772966]
[1641201650552,1.4618591,3792.5,3792.3,0.076609]
[1641201651050,1.4618591,3792.6,3792.3,0.076609]
[1641201651952,1.4618591,3792.6,3792.5,1.31770188]
[1641201652150,1.4618591,3792.6,3792.5,1.39431088]
[1641201653153,1.4618591,3792.8,3792.5,1.39431088]
[1641201653555,0.229991,3792.7,3792.5,1.39431088]
[1641201653756,1.4618591,3792.8,3792.6,2.00479]
[1641201654154,1.4618591,3792.8,3792.7,0.076609]
[1641201655257,1.4618591,3792.8,3792.6,2.00479]
[1641201655457,2.9618591,3792.8,3792.6,2.00479]
[1641201655858,1.5,3792.8,3792.6,2.00479]
[1641201656359,1.5,3792.8,3792.7,0.076609]
[1641201656658,3.25492183,3793.0,3792.7,0.076609]
[1641201657158,1.75492183,3792.9,3792.7,0.076609]
[1641201657557,1.729991,3792.8,3792.6,2.00479]
[1641201657759,1.5,3792.8,3792.7,0.076609]
[1641201658159,1.5,3792.8,3792.6,2.00479]
[1641201658560,0.229991,3792.7,3792.6,2.00479]
[1641201658761,2.0609382,3792.8,3792.6,2.081399]
[1641201658964,2.0609382,3792.8,3792.6,2.00479]
[1641201659563,0.5609382,3792.7,3792.6,2.00479]
[1641201659863,0.5609382,3792.7,3792.6,2.081399]
[1641201660362,0.5609382,3792.7,3792.6,2.00479]
[1641201660562,0.5609382,3792.7,3792.6,2.081399]
[1641201662465,2.02288991,3792.7,3792.6,2.081399]
[1641201663165,3.52288991,3792.7,3792.6,2.00479]
[1641201663565,1.46195171,3792.8,3792.6,2.00479]
[1641201663764,1.5,3792.7,3792.6,2.00479]
[1641201664166,1.46195171,3792.8,3792.6,2.081399]
[1641201664664,0.5609382,3792.7,3792.6,2.081399]
[1641201665764,1.46195171,3792.8,3792.6,13.341399]
[1641201666166,1.46195171,3792.8,3792.6,2.081399]
[1641201667570,2.02288991,3792.9,3792.6,2.081399]
[1641201668171,1.46195171,3792.8,3792.6,2.081399]
[1641201670175,1.46195171,3792.8,3792.7,11.26]
[1641201670677,1.46195171,3792.8,3792.6,2.081399]
[1641201671781,1.46195171,3792.8,3792.7,11.26]
[1641201673082,2.96195171,3792.8,3792.7,11.26]
[1641201673381,1.46195171,3792.8,3792.7,11.26]
[1641201673882,2.02288991,3792.9,3792.7,11.26]
[1641201674082,2.02288991,3792.9,3792.8,0.076609]
[1641201675084,2.02288991,3792.9,3792.8,0.198965]
[1641201675284,1.75492183,3793.2,3792.8,12.77651062]
[1641201676487,1.5,3793.2,3792.8,12.65415462]
[1641201676687,1.75492183,3793.3,3792.8,12.65415462]
[1641201677088,1.5,3793.2,3792.8,11.336609]
[1641201677289,1.75492183,3793.3,3792.8,11.336609]
[1641201677589,1.16902369,3792.9,3792.8,11.336609]
[1641201678789,1.75492183,3793.4,3792.8,11.336609]
[1641201679591,1.75492183,3793.3,3792.8,0.076609]
[1641201679790,1.5,3792.9,3792.8,0.076609]
[1641201682191,1.729991,3792.9,3792.3,5.12162413]
[1641201682393,1.5,3792.4,3791.9,6.13846477]
[1641201682593,1.5,3792.0,3791.7,1.19595315]
[1641201682791,1.5,3791.8,3791.7,1.19595315]
[1641201682992,1.729991,3791.8,3791.7,1.19595315]
[1641201683395,1.5,3791.8,3791.7,1.19595315]
[1641201683997,3.734781,3791.8,3791.7,1.19595315]
[1641201684198,3.734781,3791.8,3791.1,13.05224943]
[1641201684397,2.234781,3791.8,3791.1,11.26]
[1641201684698,1.5,3791.2,3791.1,11.26]
[1641201684895,1.5,3791.2,3791.1,11.336609]
[1641201685096,1.5,3791.2,3791.1,0.076609]
[1641201685297,1.5,3791.2,3790.9,3.20074315]
[1641201685497,1.5,3791.2,3791.1,1.19595315]
[1641201685698,1.5,3791.2,3791.1,1.27256215]
[1641201686399,1.5,3791.2,3791.0,1.19595315]
[1641201686598,1.5,3791.2,3791.1,0.076609]
[1641201687701,1.858148,3791.2,3791.0,1.19595315]
[1641201688002,1.628157,3791.2,3791.1,0.076609]
[1641201688203,1.628157,3791.2,3791.0,1.19595315]
[1641201688604,1.5,3791.2,3791.0,1.19595315]
[1641201688805,1.5,3791.1,3791.0,1.19595315]
[1641201689005,1.16800911,3791.6,3791.0,1.19595315]
[1641201689405,1.5,3791.1,3791.0,1.19595315]
[1641201689906,1.5,3791.1,3791.0,0.076609]
[1641201690606,1.16800911,3791.5,3791.0,0.076609]
[1641201692307,2.79616611,3791.6,3791.0,0.076609]
[1641201692506,2.79616611,3791.6,3791.0,0.673609]
[1641201693108,3.46692898,3791.8,3791.0,0.673609]
[1641201693109,2.00479,3791.8,3791.2,1.31815522]
[1641201693306,2.132947,3791.8,3791.5,1.31799191]
[1641201693507,2.132947,3791.8,3791.6,0.076609]
[1641201693707,2.132947,3791.8,3791.5,1.31799191]
[1641201693907,1.5,3791.6,3791.5,1.31799191]
[1641201694507,2.132947,3791.8,3791.5,1.39460091]
[1641201694707,0.229991,3791.7,3791.5,1.39460091]
[1641201694908,0.229991,3791.7,3791.5,1.31799191]
[1641201695108,3.632947,3791.8,3791.5,1.31799191]
[1641201695811,2.00479,3791.8,3791.5,1.31799191]
[1641201696511,2.00479,3791.8,3791.6,0.076609]
[1641201698615,3.50479,3791.8,3791.7,0.076609]
[1641201698914,2.00479,3791.8,3791.7,0.076609]
[1641201699215,2.56583553,3791.8,3791.7,0.076609]
[1641201699615,2.79582653,3791.8,3791.5,1.31799191]
[1641201699815,2.56583553,3791.8,3791.6,0.076609]
[1641201701217,2.00479,3791.8,3791.6,0.076609]
[1641201701515,2.00479,3791.8,3791.5,1.31799191]
[1641201701718,2.234781,3791.8,3791.5,1.31799191]
[1641201702016,2.00479,3791.8,3791.5,1.31799191]
[1641201702417,0.229991,3791.7,3791.5,1.31799191]
[1641201702617,2.00479,3791.8,3791.5,1.31799191]
[1641201702817,0.87622506,3791.6,3791.5,1.31799191]
[1641201703021,2.37622506,3791.6,3791.5,1.31799191]
[1641201703219,0.87622506,3791.6,3791.5,1.31799191]
[1641201703618,0.56105861,3791.7,3791.5,1.39460091]
[1641201704519,0.87707543,3791.6,3791.5,1.39460091]
[1641201706321,0.87707543,3791.7,3791.5,1.39460091]
[1641201707021,0.229991,3791.6,3791.5,1.31799191]
[1641201707321,1.5,3791.6,3791.5,1.31799191]
[1641201708126,1.5,3791.6,3791.5,1.39460091]
[1641201708523,1.5,3791.6,3791.5,1.31799191]
[1641201709123,1.5,3791.6,3791.5,1.39460091]
[1641201709522,1.5,3791.6,3791.5,1.31799191]
[1641201709925,1.5,3791.6,3791.5,1.39460091]
[1641201710224,1.729991,3791.6,3791.5,1.31799191]
[1641201710425,1.5,3791.6,3791.5,1.31799191]
[1641201710827,0.87707543,3791.7,3791.5,1.39460091]
[1641201711427,1.10706643,3791.7,3791.5,1.31799191]
[1641201711827,0.87707543,3791.7,3791.6,0.076609]
[1641201712028,0.87707543,3791.7,3791.6,0.864809]
[1641201713931,1.28057543,3791.9,3791.6,0.864809]
[1641201715232,0.229991,3791.8,3791.6,0.864809]
[1641201715432,1.28057543,3791.9,3791.6,0.864809]
[1641201717534,1.28057543,3791.9,3791.8,1.31782343]
[1641201717737,1.28057543,3791.9,3791.8,1.39443243]
[1641201718443,0.87707543,3791.9,3791.8,1.39443243]
[1641201719142,4.38186543,3792.2,3791.8,1.39443243]
[1641201719742,2.37707543,3792.2,3791.9,14.38950474]
[1641201719943,0.87707543,3792.3,3792.0,1.576609]
[1641201720143,0.87707543,3792.3,3792.0,12.836609]
[1641201720343,0.87707543,3792.3,3792.0,14.841399]
[1641201721145,0.87707543,3792.5,3792.0,13.341399]
[1641201721345,0.87707543,3792.5,3792.0,14.841399]
[1641201721946,0.87707543,3792.5,3792.0,13.341399]
[1641201722144,0.87707543,3792.5,3792.4,1.7774072]
[1641201722444,0.87707543,3792.5,3792.4,2.6580162]
[1641201723248,2.88186543,3792.6,3792.4,2.6580162]
[1641201724550,2.88186543,3792.6,3792.4,13.9180162]
[1641201724751,2.88186543,3792.6,3792.5,1.59889994]
[1641201725450,1.10706643,3792.6,3792.5,12.85889994]
[1641201725650,1.55370911,3792.9,3792.5,12.85889994]
[1641201725651,1.55370911,3792.9,3792.5,14.17656014]
[1641201727051,0.3857,3792.9,3792.5,14.17656014]
[1641201727752,0.3857,3792.9,3792.8,1.5]
[1641201727953,0.69013898,3793.6,3793.0,4.52775602]
[1641201728155,0.69013898,3793.6,3793.5,6.02724095]
[1641201728354,0.69013898,3793.6,3793.5,6.68004095]
[1641201728555,0.69013898,3793.6,3793.5,9.18962095]
[1641201728755,0.229991,3793.6,3793.5,9.18962095]
[1641201728954,0.128157,3793.8,3793.5,9.18962095]
[1641201729159,1.1713508,3793.7,3793.5,9.18962095]
[1641201729556,1.1713508,3793.7,3793.6,0.076609]
[1641201730055,0.56083046,3794.0,3793.6,0.076609]
[1641201730456,0.56083046,3794.0,3793.9,2.00479]
[1641201730657,0.56083046,3794.0,3793.9,2.081399]
[1641201733359,2.19278866,3794.4,3793.9,2.081399]
[1641201733559,1.75492183,3794.2,3793.9,13.463755]
[1641201733758,1.75492183,3794.2,3793.9,2.203755]
[1641201734163,1.75492183,3794.2,3793.9,13.463755]
[1641201734359,1.75492183,3794.2,3793.9,2.203755]
[1641201734561,1.75492183,3794.3,3793.9,2.081399]
[1641201734959,1.75492183,3794.3,3793.9,13.341399]
[1641201735360,1.75492183,3794.3,3794.2,1.31700424]
[1641201735559,1.75492183,3794.3,3794.2,1.39361324]
[1641201735958,1.75492183,3794.3,3794.2,0.076609]
[1641201736160,1.75492183,3794.3,3794.2,1.39367221]
[1641201736359,2.19278866,3794.5,3794.2,12.65367221]
[1641201736562,2.20226585,3794.8,3794.5,11.26]
[1641201736762,0.71014133,3795.0,3794.8,11.26]
[1641201737460,3.66248486,3795.2,3794.8,11.26]
[1641201737661,0.128157,3795.4,3794.9,0.076609]
[1641201738261,2.00479,3795.7,3794.9,0.076609]
[1641201738461,2.00479,3795.7,3794.9,2.081399]
[1641201738661,1.23279,3795.7,3795.6,1.31660889]
[1641201738962,1.23279,3795.7,3795.6,1.39321789]
[1641201740162,1.23279,3795.7,3795.3,11.26]
[1641201741262,1.23279,3795.7,3795.3,12.57661582]
[1641201742063,1.23279,3795.7,3795.3,11.26]
[1641201743664,1.23279,3795.7,3795.2,11.26]
[1641201744471,2.33193418,3795.6,3795.2,11.26]
[1641201745070,2.20377718,3795.6,3795.2,11.26]
[1641201746170,1.46940867,3795.3,3795.2,11.26]
[1641201746771,1.23279,3795.7,3795.4,2.86464508]
[1641201746974,1.23279,3795.7,3795.4,3.47424508]
[1641201747272,0.229991,3795.6,3795.4,0.6096]
[1641201748074,1.23279,3795.7,3795.4,0.6096]
[1641201748274,1.23279,3795.7,3795.2,11.26]
[1641201751583,1.23279,3795.7,3795.2,12.57665569]
[1641201752480,2.00479,3796.1,3795.6,5.26921804]
[1641201753282,2.00479,3796.1,3795.6,5.86491804]
[1641201754082,2.00479,3796.1,3795.6,17.12491804]
[1641201754482,2.00479,3796.1,3795.6,5.86491804]
[1641201755085,2.00479,3796.1,3795.6,17.12491804]
[1641201755284,2.00479,3796.5,3796.0,4.33485233]
[1641201755484,2.00479,3796.5,3796.0,15.59485233]
[1641201755684,2.00479,3796.5,3796.3,4.33459652]
[1641201757786,2.00479,3796.5,3796.3,2.5412507]
[1641201757987,2.00479,3796.5,3796.0,11.26]
[1641201762888,2.00479,3796.5,3796.2,12.57630907]
[1641201763292,2.00479,3796.5,3796.4,2.03245343]
[1641201763891,0.229991,3796.5,3796.4,2.03245343]
[1641201764292,0.128157,3796.8,3796.4,2.03245343]
[1641201765393,2.00479,3797.1,3796.4,2.03245343]
[1641201765994,2.00479,3797.1,3796.4,2.59335343]
[1641201766194,2.132947,3797.1,3796.4,2.59335343]
[1641201768803,2.132947,3797.1,3796.4,0.5609]
[1641201769003,2.132947,3797.1,3796.2,1.31630907]
[1641201769404,3.632947,3797.1,3795.9,4.18221153]
[1641201769602,2.132947,3797.1,3795.9,4.18221153]
[1641201769805,3.632947,3797.1,3795.9,4.18221153]
[1641201770206,1.4493258,3796.3,3796.2,0.89617004]
[1641201771506,1.6793168,3796.3,3796.2,0.89617004]
[1641201771707,1.4493258,3796.3,3796.2,0.89617004]
[1641201772610,1.6793168,3796.3,3796.2,0.89617004]
[1641201772809,0.229991,3796.3,3796.2,0.89617004]
[1641201773009,1.74358847,3796.5,3796.1,0.89617004]
[1641201773709,0.56038589,3796.3,3796.1,0.89617004]
[1641201774713,0.229991,3796.2,3796.1,0.89617004]
[1641201774910,2.06038589,3796.3,3796.1,0.89617004]
[1641201775114,1.5,3796.3,3796.0,1.29959147]
[1641201775813,0.229991,3796.2,3796.0,1.29959147]
[1641201776014,1.47233316,3796.1,3796.0,1.29959147]
[1641201776915,2.03271905,3796.1,3796.0,1.29959147]
[1641201777815,2.60977249,3796.2,3795.9,2.00479]
[1641201778015,1.5,3796.0,3795.3,0.89617004]
[1641201778216,1.5,3795.4,3795.0,1.19506713]
[1641201778418,0.128157,3795.3,3794.7,1.19506713]
[1641201778817,1.5,3795.1,3794.7,1.19506713]
[1641201779018,1.5,3794.9,3794.7,1.19506713]
[1641201779217,0.352347,3794.8,3794.5,2.00479]
[1641201780121,1.852347,3794.8,3794.5,2.00479]
[1641201780518,0.229991,3794.8,3794.5,2.00479]
[1641201781819,0.74512425,3795.2,3794.5,2.00479]
[1641201782320,1.5,3795.0,3794.5,2.00479]
[1641201782724,0.74512425,3795.2,3794.5,2.00479]
[1641201783624,0.128157,3795.3,3794.5,2.00479]
[1641201785329,0.5605443,3795.2,3794.5,2.00479]
[1641201790430,1.17268315,3795.1,3794.5,2.00479]
[1641201792934,1.73322745,3795.2,3794.5,2.00479]
[1641201793735,0.5605443,3795.3,3794.5,2.00479]
[1641201794936,0.128157,3795.2,3794.5,2.00479]
[1641201795538,0.5605443,3795.3,3794.5,2.00479]
[1641201796339,0.5605443,3795.1,3794.5,2.00479]
[1641201796537,0.5605443,3795.1,3794.7,0.79056627]
[1641201797539,1.17268315,3795.3,3794.7,0.79056627]
[1641201797540,0.5605443,3795.3,3794.7,0.79056627]
[1641201798442,0.87964339,3795.1,3794.7,0.79056627]
[1641201799541,0.87964339,3795.1,3794.7,1.01734886]
[1641201800043,0.87964339,3795.2,3794.7,1.01734886]
[1641201802344,0.87964339,3795.0,3794.7,1.01734886]
[1641201802946,0.229991,3794.9,3794.7,1.01734886]
[1641201804648,0.87964339,3795.0,3794.7,1.01734886]
[1641201804949,0.229991,3794.9,3794.7,1.01734886]
[1641201805348,0.87964339,3795.0,3794.7,1.01734886]
[1641201805848,0.229991,3794.9,3794.7,1.01734886]
[1641201806049,0.87964339,3795.0,3794.7,1.01734886]
[1641201807757,0.229991,3794.9,3794.7,1.01734886]
[1641201810563,0.87964339,3795.1,3794.7,1.01734886]
[1641201813470,1.00780039,3795.2,3794.7,1.01734886]
[1641201818574,0.87964339,3795.2,3794.7,1.01734886]
[1641201818776,2.00479,3795.4,3794.8,1.31678573]
[1641201818974,2.00479,3795.4,3795.2,1.31665569]
[1641201819174,2.00479,3795.4,3795.2,1.90445569]
[1641201819774,1.17268315,3796.0,3795.2,1.90445569]
[1641201819976,0.128157,3795.8,3795.2,1.90445569]
[1641201820177,1.17268315,3796.0,3795.2,1.90445569]
[1641201820377,1.17268315,3796.0,3795.2,5.16947188]
[1641201823085,0.56043236,3795.6,3795.2,5.16947188]
[1641201823883,1.17268315,3795.8,3795.2,5.16947188]
[1641201824686,1.17268315,3795.9,3795.2,5.16947188]
[1641201826388,1.17268315,3795.9,3795.4,2.80318875]
[1641201826790,35.91387315,3796.1,3795.4,2.80318875]
[1641201829292,35.91387315,3796.1,3795.4,2.92554475]
[1641201829792,35.91387315,3796.1,3795.4,2.80318875]
[1641201829793,0.128157,3795.9,3795.4,2.80318875]
[1641201831298,1.17268315,3796.0,3795.4,2.80318875]
[1641201833500,0.128157,3795.9,3795.4,2.80318875]
[1641201834202,0.229991,3795.6,3795.4,2.80318875]
[1641201835004,1.17268315,3796.0,3795.4,2.80318875]
[1641201835602,1.17268315,3795.9,3795.4,2.80318875]
[1641201835804,1.30084015,3795.9,3795.4,2.80318875]
[1641201836202,1.17268315,3795.9,3795.4,2.80318875]
[1641201837304,0.229991,3795.6,3795.4,2.80318875]
[1641201838206,1.17268315,3795.9,3795.4,2.80318875]
[1641201838407,1.30084015,3795.9,3795.4,2.80318875]
[1641201838908,1.17268315,3795.9,3795.4,2.80318875]
[1641201839312,0.88187195,3795.6,3795.4,2.80318875]
[1641201839910,1.11186295,3795.6,3795.4,2.80318875]
[1641201840511,1.24001995,3795.6,3795.4,2.80318875]
[1641201840712,0.88187195,3795.6,3795.4,2.80318875]
[1641201840914,1.11186295,3795.6,3795.4,2.80318875]
[1641201841315,0.88187195,3795.6,3795.4,2.80318875]
[1641201843918,0.229991,3795.5,3795.4,2.80318875]
[1641201844119,0.88187195,3795.6,3795.4,2.80318875]
[1641201844520,0.88187195,3795.7,3795.4,2.80318875]
[1641201844923,0.229991,3795.6,3795.4,2.80318875]
[1641201845622,0.88187195,3795.7,3795.4,2.80318875]
[1641201846023,1.11186295,3795.6,3795.4,2.80318875]
[1641201846223,0.88187195,3795.6,3795.4,2.80318875]
[1641201846822,0.229991,3795.5,3795.4,2.80318875]
[1641201848123,0.88187195,3795.6,3795.4,2.80318875]
[1641201849223,1.11186295,3795.6,3795.4,2.80318875]
[1641201850325,1.11186295,3795.6,3795.3,2.00479]
[1641201850525,1.23421895,3795.6,3795.3,2.00479]
[1641201850725,1.23421895,3795.6,3795.0,1.19103978]
[1641201850925,1.90731895,3795.6,3795.0,1.19103978]
[1641201851326,1.90731895,3795.6,3794.9,2.89928497]
[1641201851327,1.73305216,3795.5,3794.9,2.89928497]
[1641201852427,0.8814389,3795.2,3794.9,2.00479]
[1641201852629,0.229991,3795.1,3794.9,2.00479]
[1641201853727,0.229991,3795.1,3794.9,2.89928497]
[1641201854132,0.229991,3795.1,3794.6,1.19103978]
[1641201854731,0.229991,3795.1,3794.5,3.19582978]
[1641201855832,1.17268315,3794.9,3794.5,2.00479]
[1641201856032,1.17268315,3794.9,3794.1,2.00479]
[1641201856433,0.122356,3794.8,3794.1,2.00479]
[1641201856636,0.890256,3794.8,3794.0,1.19103978]
[1641201857035,0.890256,3794.8,3794.1,1.19103978]
[1641201858037,2.00479,3794.4,3793.8,1.56090501]
[1641201858437,0.128157,3794.3,3793.8,1.56090501]
[1641201859040,0.128157,3794.3,3793.8,0.36986523]
[1641201859938,0.128157,3794.3,3793.8,1.56090501]
[1641201861354,0.812957,3794.3,3793.8,1.56090501]
[1641201861539,1.5,3794.1,3793.8,1.56090501]
[1641201861742,0.229991,3794.0,3793.8,1.56090501]
[1641201861942,0.122356,3794.2,3794.1,1.19103978]
[1641201862540,0.352347,3794.2,3794.1,1.19103978]
[1641201863440,0.229991,3794.2,3794.1,1.19103978]
[1641201863846,2.03288876,3794.2,3793.8,0.7377]
[1641201864046,2.00479,3793.9,3793.8,0.7377]
[1641201864844,2.00479,3793.9,3793.8,1.92873978]
[1641201865743,2.00479,3793.9,3793.8,0.7377]
[1641201866543,3.1804186,3794.4,3793.8,0.7377]
[1641201867745,2.00479,3794.4,3793.8,0.7377]
[1641201867947,0.128157,3794.3,3793.8,0.7377]
[1641201868745,2.00479,3794.4,3793.8,0.7377]
[1641201869046,2.00479,3794.4,3793.7,5.00831562]
[1641201870746,0.128157,3794.3,3793.7,5.00831562]
[1641201871446,2.00479,3794.4,3793.7,5.00831562]
[1641201873153,2.132947,3794.4,3793.7,5.00831562]
[1641201874650,2.00479,3794.4,3793.7,5.00831562]
[1641201875352,2.132947,3794.4,3793.7,5.00831562]
[1641201876454,2.132947,3794.4,3793.7,5.90121654]
[1641201880057,2.132947,3794.4,3793.7,5.00831562]
[1641201881058,2.132947,3794.4,3793.7,5.90119286]
[1641201882262,2.132947,3794.4,3793.7,5.00831562]
[1641201883962,2.00479,3794.4,3793.7,5.00831562]
[1641201884663,2.132947,3794.4,3793.7,5.00831562]
[1641201886864,2.00479,3794.4,3793.7,5.00831562]
[1641201887363,2.132947,3794.4,3793.7,5.00831562]
[1641201889667,2.00479,3794.4,3794.3,1.5]
[1641201889868,0.87903494,3794.7,3794.3,3.51684577]
[1641201890070,0.87903494,3794.7,3794.3,2.01684577]
[1641201890470,0.87903494,3794.7,3794.5,2.00479]
[1641201890670,1.17204659,3795.0,3794.8,1.48170695]
[1641201890869,1.40203759,3795.0,3794.6,1.3166921]
[1641201891270,1.17204659,3795.0,3794.6,1.3166921]
[1641201891470,0.523157,3795.2,3794.6,1.3166921]
[1641201891668,0.395,3795.2,3794.6,1.3166921]
[1641201892071,0.395,3795.2,3794.7,1.5]
[1641201892473,0.395,3795.2,3794.6,1.3166921]
[1641201896079,0.395,3795.2,3794.7,1.5]
[1641201896279,0.395,3795.2,3794.8,0.98839275]
[1641201896677,0.523157,3795.2,3794.8,0.98839275]
[1641201896876,0.395,3795.2,3794.8,0.98839275]
[1641201901691,0.56036328,3795.1,3794.9,0.36940533]
[1641201901888,0.56036328,3795.1,3795.0,1.19050298]
[1641201902890,0.56036328,3795.1,3795.0,1.55990831]
[1641201904192,0.395,3795.2,3795.0,0.36940533]
[1641201904792,0.624991,3795.2,3795.0,0.36940533]
[1641201905292,0.395,3795.2,3795.1,1.19471838]
[1641201905995,0.624991,3795.2,3795.1,1.19471838]
[1641201906196,3.17683659,3795.4,3795.1,1.96011838]
[1641201906394,1.46505823,3795.7,3795.1,1.96011838]
[1641201906594,1.46505823,3795.7,3795.6,2.00479]
[1641201906995,3.22312811,3796.0,3795.6,2.00479]
[1641201907196,1.46505823,3796.0,3795.6,2.00479]
[1641201907397,1.46505823,3796.0,3795.6,3.32123596]
[1641201908396,1.46505823,3796.2,3795.6,3.32123596]
[1641201908597,1.46505823,3796.2,3795.8,0.79034632]
[1641201909399,0.128157,3796.4,3795.8,0.79034632]
[1641201911500,0.128157,3796.4,3795.6,3.32123596]
[1641201912899,2.00479,3796.7,3795.6,3.32123596]
[1641201913800,2.00479,3796.7,3795.8,0.79033904]
[1641201914100,2.00479,3796.7,3796.2,0.79026262]
[1641201914300,2.00479,3796.7,3796.2,1.32066262]
[1641201915803,2.00479,3796.7,3796.6,1.31608386]
[1641201916202,2.00479,3796.7,3796.3,0.122356]
[1641201916404,2.00479,3796.7,3796.6,1.31606134]
[1641201916604,32.2909,3797.1,3796.6,3.32085134]
[1641201916805,0.87809142,3797.2,3796.6,3.32085134]
[1641201917604,2.00479,3797.5,3796.6,3.32085134]
[1641201918004,0.128157,3797.2,3796.6,3.32085134]
[1641201918507,2.00479,3797.5,3796.6,3.32085134]
[1641201920506,32.746857,3797.3,3796.6,3.32085134]
[1641201921307,32.746857,3797.3,3796.6,4.11102947]
[1641201923914,2.00479,3797.5,3797.0,0.98620376]
[1641201924113,0.87809142,3797.7,3797.0,1.70300376]
[1641201924314,0.128157,3797.6,3797.0,1.70300376]
[1641201924714,0.128157,3797.6,3797.2,2.00479]
[1641201926315,2.00479,3797.9,3797.2,2.127146]
[1641201926515,2.00479,3797.9,3797.5,0.98609759]
[1641201927518,31.9559,3798.2,3797.5,0.98609759]
[1641201927718,0.87809142,3798.3,3797.8,0.78991145]
[1641201927916,30.5675,3798.4,3797.8,0.78991145]
[1641201928115,1.17156675,3798.6,3797.8,0.78991145]
[1641201928316,0.87809142,3798.8,3797.8,0.78991145]
[1641201928716,0.87809142,3798.8,3798.2,2.00479]
[1641201928918,0.128157,3798.7,3798.2,2.00479]
[1641201929719,1.628157,3798.7,3798.2,2.00479]
[1641201929917,1.628157,3798.7,3797.3,1.31570464]
[1641201929918,0.128157,3798.7,3797.2,4.11073923]
[1641201930221,1.5,3798.6,3797.2,2.79484414]
[1641201930418,1.5,3798.3,3797.2,2.79484414]
[1641201930617,2.216356,3798.3,3797.2,2.79484414]
[1641201930822,0.716356,3798.3,3797.2,2.79484414]
[1641201931020,0.594,3798.3,3797.4,1.31581025]
[1641201931219,0.122356,3798.2,3797.4,1.31581025]
[1641201931429,2.00479,3798.4,3797.4,1.31581025]
[1641201931821,0.122356,3798.3,3797.4,1.31581025]
[1641201932120,1.5,3798.2,3797.4,1.31581025]
[1641201932320,0.782456,3798.3,3797.4,1.31581025]
[1641201932520,0.6601,3798.3,3797.4,1.31581025]
[1641201933325,2.1601,3798.3,3797.4,1.31581025]
[1641201934827,11.9701,3798.3,3797.2,2.00479]
[1641201935025,1.5,3797.8,3796.1,1.31626056]
[1641201935227,0.122356,3797.7,3796.1,1.31626056]
[1641201935427,1.5,3797.3,3796.1,1.31626056]
[1641201935625,2.0775,3797.3,3796.1,1.31626056]
[1641201936027,2.0775,3797.3,3796.0,1.13802142]
[1641201936728,0.5775,3797.3,3796.0,1.13802142]